[Event "XTX Markets London Masters 2024"]
[Site "London"]
[Date "2024.11.29"]
[Round "1.12"]
[White "Birkisson, Bjorn Holm"]
[Black "Gonzalez Garcia, Jose"]
[Result "0-1"]
[ECO "B31"]
[WhiteElo "2165"]
[BlackElo "2465"]
[Annotator "TA"]
[PlyCount "108"]
[EventDate "2024.11.28"]
[EventType "swiss"]
[EventCountry "ENG"]
[SourceTitle "playchess.com"]
[Source "ChessBase"]
[SourceQuality "1"]
[TimeControl "40/5400+30:1800+30"]

{[%evp 17,108,0,0,0,0,0,4,2,38,0,6,13,25,-19,-3,-24,-11,-20,-11,-16,-16,-21,-27,-29,0,0,0,-58,-51,-58,-47,-37,-45,-44,-35,-46,-24,-26,-15,-33,-34,-75,-80,-68,-68,-137,-106,-106,-106,-296,-259,-311,-297,-323,-306,-345,-303,-327,-327,-343,-343,-1456,-620,-700,-633,-836,-860,-1981,-319,-2457,-2041,-29964,-29967,-29968,-29969,-29969,-29968,-29968,-29962,-29959,-29961,-29964,-29964,-29975,-29976,-29979,-29978,-29978,-29979,-29981,-29982,-29982,-29975]} 1. e4 {[%emt 0:00:05]} c5 {[%emt 0:00:25]} 2. Nf3 {[%emt 0:00:06]} Nc6 {[%emt 0:00:50]} 3. Bb5 {[%emt 0:00:17]} g6 {[%emt 0:01:41]} 4. O-O {[%emt 0:01:12]} Bg7 {[%emt 0:00:04]} 5. c3 {[%emt 0:00:07]} Nf6 {[%emt 0:00:10]} 6. Re1 {[%emt 0:00:05]} O-O {[%emt 0:00:20]} 7. d4 {[%emt 0:00:05]} d5 {[%emt 0:01:02]} 8. e5 {[%emt 0:00:25]} Ne4 {[%emt 0:00:10]} 9. Bxc6 {[%emt 0:08:14]} bxc6 {[%emt 0:00:02]} 10. Be3 $1 {[%emt 0:00:06]} cxd4 {[%emt 0:04:34]} 11. cxd4 {[%emt 0:00:09]} f6 {[%emt 0:13:45]} 12. Qc1 {[%emt 0:45:53]} Qd7 {[%emt 0:11:29]} 13. exf6 {[%emt 0:17:55]} exf6 {[%emt 0:00:57]} 14. Nbd2 {[%emt 0:05:01]} Re8 {[%emt 0:06:10]} 15. Nxe4 {[%emt 0:02:18]} dxe4 {[%emt 0:01:07]} 16. Qc4+ {[%emt 0:00:27]} Qd5 {[%emt 0:09:42]} 17. Nd2 {[%emt 0:00:05]} Be6 {[%emt 0:00:20]} 18. Rac1 {[%emt 0:03:59]} Rac8 {[%emt 0:14:17]} 19. Qxd5 {[%emt 0:08:09]} cxd5 {[%emt 0:00:55]} 20. Nb3 {[%emt 0:00:33]} f5 {[%emt 0:02:18]} 21. g3 {[%emt 0:01:19]} Kf7 {[%emt 0:07:40]} 22. Rxc8 {[%emt 0:00:57]} (22. h4 $11) 22... Rxc8 $15 {[%emt 0:00:33]} 23. Rc1 {[%emt 0:00:46]} Rc4 {[%emt 0:00:28]} 24. Rxc4 {[%emt 0:00:56]} dxc4 {[%emt 0:00:06][%mdl 4096] Endgame KBB-KBN} 25. Nc1 {[%emt 0:01:29] [#]} g5 $1 {[%emt 0:02:23][%cal Of5f4]} 26. Ne2 {[%emt 0:00:14]} Bf6 {[%emt 0:02:16]} 27. Nc3 {[%emt 0:02:11]} Bd7 {[%emt 0:00:28]} 28. Kg2 {[%emt 0:00:23]} a6 {[%emt 0:02:07]} 29. f3 {[%emt 0:00:38]} exf3+ {[%emt 0:01:45]} 30. Kxf3 {[%emt 0:00:06]} Kg6 {[%emt 0:00:20]} 31. b3 {[%emt 0:00:28]} (31. Ne2 $15) 31... Be6 {[%emt 0:05:22]} 32. bxc4 {[%emt 0:00:39]} Bxc4 {[%emt 0:00:09]} 33. g4 $2 {[%emt 0:01:02]} (33. a3 $17 {was worth a try.}) 33... fxg4+ $19 {[%emt 0:01:59]} 34. Kxg4 {[%emt 0:00:06]} h5+ {[%emt 0:00:06]} 35. Kf3 {[%emt 0:00:31]} Kf5 {[%emt 0:00:02]} 36. a3 {[%emt 0:00:59]} Be7 {[%emt 0:01:43]} 37. Bc1 {[%emt 0:00:10]} g4+ {[%emt 0:01:55]} 38. Kg2 {[%emt 0:00:37]} h4 {[%emt 0:01:29]} 39. Bb2 $2 {[%emt 0:00:45]} (39. h3) 39... Bf6 {[%emt 0:02:21]} (39... h3+ $142 40. Kg1 Bg5) 40. Nd1 {[%emt 0:00:17] Strongly threatening Ne3+.} h3+ {[%emt 0:02:36]} 41. Kg3 {[%emt 0:17:59]} Bg5 {[%emt 0:00:19] and ...Bf4+ should not be overlooked Prevents Ne3+.} 42. Nf2 {[%emt 0:00:06]} Bf4+ {[%emt 0:01:20]} 43. Kh4 {[%emt 0:00:46]} Be2 {[%emt 0:01:39] A strong pair of Bishops.} ({Less strong is} 43... Bxh2 44. Nxg4 Bf4 45. Kxh3 $17) 44. Nxh3 {[%emt 0:01:18]} gxh3 {[%emt 0:00:10]} 45. Kxh3 {[%emt 0:00:04]} Bf1+ {[%emt 0:00:57]} 46. Kh4 {[%emt 0:00:11]} Bxh2 {[%emt 0:00:57]} 47. Bc3 {[%emt 0:04:07]} Bg1 {[%emt 0:01:33]} 48. Kg3 {[%emt 0:00:54]} Ke4 {[%emt 0:00:04]} 49. d5 {[%emt 0:02:35]} Kxd5 {[%emt 0:00:23]} 50. Kf3 {[%emt 0:00:04]} Kc4 {[%emt 0:00:14]} 51. Bb4 {[%emt 0:00:13]} Bd3 {[%emt 0:00:18]} 52. Bd6 {[%emt 0:00:18]} a5 {[%emt 0:00:10]} 53. Be7 {[%emt 0:00:08]} a4 {[%emt 0:00:09]} 54. Kf4 {[%emt 0:00:13]} Bd4 {[%emt 0:00:34]} 0-1

[Event "XTX Markets London Masters 2024"]
[Site "London"]
[Date "2024.11.29"]
[Round "1.13"]
[White "Wadsworth, Matthew J"]
[Black "Rocco, Federico"]
[Result "1-0"]
[ECO "E04"]
[WhiteElo "2461"]
[BlackElo "2154"]
[Annotator "TA"]
[PlyCount "137"]
[EventDate "2024.11.28"]
[EventType "swiss"]
[EventCountry "ENG"]
[SourceTitle "playchess.com"]
[Source "ChessBase"]
[SourceQuality "1"]
[TimeControl "40/5400+30:1800+30"]

{[%evp 12,137,50,28,43,36,75,82,70,72,70,53,96,103,102,65,52,31,26,14,53,0,2,3,3,0,1,0,48,15,101,97,119,95,84,86,88,100,102,69,68,73,68,71,64,67,63,17,166,168,154,124,161,161,486,310,310,307,314,161,161,160,161,153,169,169,151,148,281,281,237,248,272,272,265,264,256,263,248,248,262,251,389,381,492,345,5636,9893,1520,569,6617,12566,12829,4602,29940,12846,12343,12784,12371,5181,29947,29948,29949,29943,2362,12671,29960,12770,10735,1022,9515,614,606,599,587,178,29978,29978,29979,29979,29979,29979,29981,29982,29983,29983,29983,29984]} 1. d4 {[%emt 0:00:02]} Nf6 {[%emt 0:19:19]} 2. c4 {[%emt 0:00:08]} e6 {[%emt 0:00:06]} 3. g3 {[%emt 0:00:07]} d5 {[%emt 0:00:11]} 4. Bg2 {[%emt 0:00:32]} Nbd7 {[%emt 0:01:32]} 5. Nf3 {[%emt 0:00:57][%cal Bg1f3,Bf3d2,Bd2c4][%mdl 32]} dxc4 {[%emt 0:01:31]} 6. O-O {[%emt 0:00:09]} Rb8 {[%emt 0:01:13]} 7. a4 {[%emt 0:02:10]} b6 {[%emt 0:00:29]} 8. Nfd2 {[%emt 0:02:05]} Ba6 {[%emt 0:04:04]} 9. Nc3 $1 {[%emt 0:01:50]} Bb7 {[%emt 0:08:04]} 10. Bxb7 {[%emt 0:01:34]} Rxb7 {[%emt 0:00:04]} 11. Nxc4 {[%emt 0:00:47]} Bb4 {[%emt 0:00:44]} 12. Qb3 {[%emt 0:03:39]} a5 {[%emt 0:01:20]} 13. Nb5 {[%emt 0:09:53]} Nb8 {[%emt 0:05:51]} 14. Bf4 {[%emt 0:02:05]} O-O {[%emt 0:00:35]} 15. Qf3 {[%emt 0:04:18]} Qd5 {[%emt 0:02:21]} 16. Qxd5 {[%emt 0:10:24]} ({White should play} 16. Qd3 $14) 16... exd5 $11 {[%emt 0:00:47]} 17. Ne5 {[%emt 0:00:10]} c6 {[%emt 0:01:27]} 18. Nc3 {[%emt 0:00:06]} Re8 {[%emt 0:02:46]} 19. Rfc1 {[%emt 0:03:20]} Nfd7 {[%emt 0:10:33]} (19... h6 $11) 20. Nd3 {[%emt 0:02:06]} Bxc3 {[%emt 0:05:07]} (20... Bf8 $11 {keeps the balance.}) 21. Rxc3 $16 {[%emt 0:00:16]} f6 {[%emt 0:03:35]} 22. h4 {[%emt 0:01:50]} c5 {[%emt 0:03:13]} (22... Rxe2 23. Be3 $16) 23. dxc5 {[%emt 0:01:47]} bxc5 {[%emt 0:02:03]} 24. Nxc5 {[%emt 0:01:53]} Rxb2 {[%emt 0:01:30][%cal Bb7b2,Bb2d2,Bd2d4][%mdl 32]} 25. Bxb8 {[%emt 0:02:13]} Nxc5 {[%emt 0:05:11]} 26. Rxc5 {[%emt 0:01:01]} Rexb8 {[%emt 0:00:09][%mdl 4096] Endgame KRR-KRR} 27. e3 {[%emt 0:04:54]} (27. Rxa5 Rd2 $16) 27... Rd2 {[%emt 0:00:40]} 28. Rxa5 {[%emt 0:03:42]} Rbb2 {[%emt 0:00:09]} 29. Rf1 {[%emt 0:00:07]} (29. Rb5 $1 $14 {feels stronger.} Rbc2 30. a5) 29... d4 {[%emt 0:00:32]} (29... h5 $11) 30. exd4 $1 $18 {[%emt 0:03:28]} Rxd4 {[%emt 0:00:10]} 31. Ra7 {[%emt 0:00:43]} Rdd2 {[%emt 0:00:30]} 32. h5 {[%emt 0:05:02]} Ra2 $2 {[%emt 0:04:13]} (32... h6) 33. Rb1 {[%emt 0:12:25]} Rdb2 {[%emt 0:00:39]} 34. Rxb2 {[%emt 0:00:08]} Rxb2 {[%emt 0:00:05] [#] KR-KR. White is a pawn up.} 35. h6 {[%emt 0:00:06]} gxh6 {[%emt 0:00:23]} 36. a5 {[%emt 0:00:10][%cal Ba4a5,Ba5a6][%mdl 32]} Ra2 {[%emt 0:00:40]} 37. a6 {[%emt 0:02:50]} h5 {[%emt 0:01:21]} 38. Kg2 $1 {[%emt 0:02:19]} Ra3 {[%emt 0:00:07]} 39. Kf1 {[%emt 0:00:21] White is more active.} Ra2 {[%emt 0:00:06]} (39... Kf8 $16 40. Rxh7 Ra1+ 41. Kg2 Rxa6) 40. Ke1 {[%emt 0:00:23]} Kf8 {[%emt 0:03:30]} 41. Kd1 $1 {[%emt 0:31:00]} (41. Rxh7 Rxa6 42. Rxh5 Kf7 $14) 41... Ke8 {[%emt 0:32:46]} 42. Kc1 {[%emt 0:01:32]} (42. Rxh7 Ra1+ 43. Kd2 Rxa6 $11) 42... Kd8 {[%emt 0:01:19]} 43. Kb1 {[%emt 0:00:52]} (43. Rxh7 Rxa6 44. Kd2 Ra5 $11) 43... Ra5 {[%emt 0:00:25]} 44. Kc2 {[%emt 0:00:19]} (44. Rxh7 Rxa6 45. Kc2 Ra2+ 46. Kd3 Rxf2 $11) 44... Kc8 {[%emt 0:00:56]} 45. Kd3 {[%emt 0:01:09]} (45. Rxh7 Rxa6 46. Rxh5 Ra2+ 47. Kd3 Rxf2 $11) 45... Ra4 {[%emt 0:03:40]} 46. Ke3 {[%emt 0:01:05]} (46. Rxh7 Rxa6 47. Rxh5 Kd7 $11) 46... h4 {[%emt 0:00:24]} (46... Kd8 {might work better.} 47. Kf3 (47. Rxh7 Rxa6 48. Rxh5 Ke7 $16) 47... Ke8) 47. gxh4 $1 {[%emt 0:00:49]} ({Worse is} 47. Rxh7 hxg3 48. fxg3 Rxa6 $11) 47... h5 {[%emt 0:01:24]} 48. f4 {[%emt 0:01:24] and Ra8+ would now be decisive} Ra3+ $2 {[%emt 0:03:41]} (48... f5 49. Rf7 Rxa6) 49. Ke4 {[%emt 0:00:08]} Ra5 {[%emt 0:00:05]} 50. Rf7 {[%emt 0:10:22]} (50. Rh7 $142 Rxa6 51. Kf5 (51. Rxh5 Kd7 $18)) 50... Rxa6 {[%emt 0:00:05]} 51. Kf5 {[%emt 0:00:07]} Kd8 {[%emt 0:00:54]} 52. Rxf6 {[%emt 0:00:10]} Ra1 {[%emt 0:01:15]} 53. Re6 {[%emt 0:00:00]} (53. Rh6 $142 Ke8 54. Rxh5 Kf8 55. Rh7 Kg8 56. Rd7 Rh1 57. h5 Rc1 58. Kg5) 53... Kd7 {[%emt 0:03:16]} 54. Rh6 {[%emt 0:00:00]} Ke7 {[%emt 0:00:00]} 55. Rxh5 {[%emt 0:00:00]} Kf7 {[%emt 0:00:00]} 56. Rh7+ {[%emt 0:00:00]} Kg8 {[%emt 0:00:00]} 57. Rb7 {[%emt 0:00:00]} Rh1 {[%emt 0:00:00] [#]} 58. h5 $1 {[%emt 0:00:00] Intending Kf6 and mate.} Kf8 {[%emt 0:00:00]} (58... Rc1 59. Kf6) 59. Kf6 {[%emt 0:00:00][%cal Rb7b8]} Kg8 {[%emt 0:00:00]} 60. f5 {[%emt 0:00:00]} (60. Rg7+ $142 Kf8 61. Rd7) 60... Ra1 {[%emt 0:00:00]} 61. h6 {[%emt 0:00:00]} (61. Rg7+ $142 Kf8 62. h6) 61... Rh1 {[%emt 0:00:00] [#]} 62. Rg7+ $1 {[%emt 0:00:00]} Kh8 {[%emt 0:00:00]} 63. Kf7 $2 {[%emt 0:00:00]} (63. Re7) 63... Rxh6 $2 {[%emt 0:00:00]} (63... Rf1 $18) 64. Rg8+ {[%emt 0:00:19]} Kh7 {[%emt 0:00:00]} 65. Rg1 {[%emt 0:01:04]} Kh8 {[%emt 0:00:00]} 66. f6 {[%emt 0:00:42][%cal Bf5f6,Bf6f7][%mdl 32]} Rh7+ {[%emt 0:00:00]} 67. Kf8 {[%emt 0:00:27][%csl Gf8][%cal Rg1g8]} Rh2 {[%emt 0:00:00]} 68. f7 {[%emt 0:00:27]} Kh7 {[%emt 0:00:00]} 69. Rf1 {[%emt 0:00:43]} 1-0

[Event "XTX Markets London Masters 2024"]
[Site "London"]
[Date "2024.11.29"]
[Round "1.14"]
[White "Bradbury, Neil H"]
[Black "Korneev, Oleg"]
[Result "0-1"]
[ECO "D11"]
[WhiteElo "2149"]
[BlackElo "2459"]
[Annotator "TA"]
[PlyCount "64"]
[EventDate "2024.11.28"]
[EventType "swiss"]
[EventCountry "ENG"]
[SourceTitle "playchess.com"]
[Source "ChessBase"]
[SourceQuality "1"]
[TimeControl "40/5400+30:1800+30"]

{[%evp 13,64,2,0,0,0,6,3,0,0,0,28,4,10,0,0,-3,0,-12,-14,-18,-25,-23,-14,-47,-32,-37,-11,-87,-93,-85,-68,-86,-78,-275,-252,-283,-254,-290,-276,-326,-266,-319,-311,-368,-374,-355,-317,-506,-447,-644,-641,-744,-610]} 1. Nf3 {[%emt 0:09:35]} d5 {[%emt 0:00:09]} 2. g3 {[%emt 0:01:52]} Nf6 {[%emt 0:02:58]} 3. Bg2 {[%emt 0:02:19]} Bf5 {[%emt 0:03:07]} 4. c4 {[%emt 0:01:50]} c6 {[%emt 0:00:09]} 5. d4 {[%emt 0:01:57]} e6 {[%emt 0:00:20]} 6. O-O {[%emt 0:02:48]} Be7 {[%emt 0:01:02]} 7. Qb3 {[%emt 0:00:58]} Qb6 {[%emt 0:00:06]} 8. c5 {[%emt 0:01:00]} Qa6 {[%emt 0:00:16][%cal Oh7h6]} 9. Nc3 {[%emt 0:01:42]} b6 {[%emt 0:02:10]} (9... h6 10. Ne5 b6 11. e4 dxe4 12. Re1 Nbd7) 10. cxb6 {[%emt 0:04:45]} axb6 {[%emt 0:00:02]} 11. Nh4 {[%emt 0:03:50]} Be4 {[%emt 0:00:40]} 12. f3 {[%emt 0:04:48]} Bg6 {[%emt 0:00:30]} 13. Nxg6 {[%emt 0:03:37]} hxg6 {[%emt 0:00:03]} 14. e4 {[%emt 0:00:10]} b5 {[%emt 0:09:41]} (14... Nbd7 {is more complex.} 15. Bg5 e5 16. Be3 exd4 17. Bxd4 Bc5) 15. exd5 {[%emt 0:19:15]} Nxd5 {[%emt 0:01:05]} 16. Nxd5 {[%emt 0:03:24]} cxd5 {[%emt 0:00:11]} 17. Rd1 {[%emt 0:00:04]} Qa4 {[%emt 0:24:54] And now ...Qxb3 would win.} 18. Qd3 {[%emt 0:04:50]} b4 {[%emt 0:10:21]} 19. b3 {[%emt 0:07:37]} Qd7 {[%emt 0:00:49]} 20. Bb2 {[%emt 0:02:05]} (20. Be3 $11 {remains equal.}) 20... O-O $17 {[%emt 0:01:48] Black is more active.} 21. Bf1 {[%emt 0:00:13]} Ra5 {[%emt 0:07:18]} 22. Qd2 {[%emt 0:09:53]} Nc6 {[%emt 0:04:39]} 23. a4 $2 {[%emt 0:02:59]} (23. Bd3 $17) 23... bxa3 $19 {[%emt 0:00:15]} 24. Bc3 {[%emt 0:00:03]} Raa8 {[%emt 0:04:26]} 25. Bb5 {[%emt 0:00:12]} Qb7 {[%emt 0:02:30]} 26. Ba4 {[%emt 0:00:06]} Qb6 {[%emt 0:00:58]} 27. Kg2 {[%emt 0:00:25]} Rfc8 {[%emt 0:01:50]} 28. Rac1 {[%emt 0:02:01]} Nb4 {[%emt 0:07:16]} 29. Ba1 {[%emt 0:02:23]} g5 {[%emt 0:02:51]} 30. Bc3 {[%emt 0:03:38]} (30. Rc3 {was worth a try.}) 30... Rc7 {[%emt 0:01:56]} 31. Bxb4 {[%emt 0:02:13]} (31. Ba1 $142) 31... Bxb4 {[%emt 0:01:13]} 32. Qxg5 {[%emt 0:00:37]} a2 {[%emt 0:03:50]} 0-1

[Event "XTX Markets London Masters 2024"]
[Site "London"]
[Date "2024.11.29"]
[Round "1.15"]
[White "Willow, Jonah B"]
[Black "Li, Wenxiang"]
[Result "0-1"]
[ECO "B12"]
[WhiteElo "2454"]
[BlackElo "2145"]
[Annotator "TA"]
[PlyCount "82"]
[EventDate "2024.11.28"]
[EventType "swiss"]
[EventCountry "ENG"]
[SourceTitle "playchess.com"]
[Source "ChessBase"]
[SourceQuality "1"]
[TimeControl "40/5400+30:1800+30"]

{[%evp 13,82,32,36,32,35,5,63,62,79,78,84,84,93,75,66,71,91,35,73,-33,-25,-37,-34,-83,-84,-83,-83,-177,-195,-280,-272,-296,-269,-307,-309,-412,-247,-234,-218,-208,-193,-193,-147,-147,-147,-200,-202,-204,-205,-204,-214,-206,-204,-206,-217,-419,-371,-676,-777,-999,-976,-29963,-29961,-29983,-29971,-29971,-29971,-29968,-29969,-29991,-29990]} 1. e4 {[%emt 0:02:19]} c6 {[%emt 0:01:37]} 2. d4 {[%emt 0:01:12]} d5 {[%emt 0:00:02]} 3. e5 {[%emt 0:00:25]} Bf5 {[%emt 0:00:06]} 4. Nf3 {[%emt 0:00:19]} e6 {[%emt 0:00:10]} 5. Be2 {[%emt 0:00:19]} Nd7 {[%emt 0:00:09]} 6. O-O {[%emt 0:00:25]} Ne7 {[%emt 0:00:08]} 7. c3 {[%emt 0:00:16]} h6 {[%emt 0:00:24]} 8. Nbd2 {[%emt 0:00:40][%cal Bb1d2,Bd2b3,Bb3c5][%mdl 32]} Bh7 {[%emt 0:00:19]} 9. a4 {[%emt 0:05:24][%cal Ba2a4,Ba4a5][%mdl 32]} Nf5 {[%emt 0:03:34]} (9... c5 $11) 10. a5 $14 {[%emt 0:03:11]} a6 {[%emt 0:00:06]} 11. b4 {[%emt 0:03:46]} Qc7 {[%emt 0:04:47]} 12. Nb3 {[%emt 0:01:37]} O-O-O {[%emt 0:17:33]} 13. Nc5 {[%emt 0:08:29]} Bxc5 {[%emt 0:01:16]} 14. bxc5 {[%emt 0:01:08]} f6 {[%emt 0:00:49][%cal Rf6e5]} 15. Kh1 {[%emt 0:12:15]} ({White should play} 15. Bd3 $16) 15... Ne7 {[%emt 0:12:02][%cal Rf6e5,Bf5e7,Be7g6,Bg6f4][%mdl 32]} (15... fxe5 16. Nxe5 Nxc5 17. f3) 16. Qb3 {[%emt 0:14:36]} (16. exf6 $16 gxf6 17. Re1 (17. Bxh6 Be4 $11)) 16... fxe5 $15 {[%emt 0:18:31]} 17. Nxe5 {[%emt 0:02:56]} Nxe5 {[%emt 0:01:07]} 18. Bf4 {[%emt 0:01:07]} (18. dxe5 $15 Qxe5 19. Re1) 18... N7g6 $1 $17 {[%emt 0:00:17]} 19. Bg3 {[%emt 0:00:09][%cal Of1e1] [#]} Rdf8 $1 {[%emt 0:12:44][%cal Og6f4]} 20. f4 {[%emt 0:03:35]} (20. dxe5 $17 Nf4 21. Rfe1) (20. Rfe1 Nf4) 20... h5 $1 $19 {[%emt 0:02:47][%cal Oh5h4]} 21. fxe5 {[%emt 0:15:08] [#]} (21. f5 $142 Rxf5 22. Bxe5 Nxe5 23. dxe5) 21... h4 $1 {[%emt 0:00:34]} 22. Bf2 {[%emt 0:00:08] [#]} Nf4 $1 {[%emt 0:04:08]} 23. Bf3 {[%emt 0:00:05][%cal Of2e3]} h3 {[%emt 0:03:41]} (23... Bd3 24. Bg1 $19) 24. Bg3 {[%emt 0:02:23]} hxg2+ {[%emt 0:02:45]} (24... Bd3 $142 25. Rfd1 hxg2+ 26. Bxg2 Bc4) 25. Bxg2 {[%emt 0:00:05]} Nxg2 {[%emt 0:00:08]} 26. Kxg2 {[%emt 0:00:05]} Be4+ {[%emt 0:00:08]} 27. Kg1 {[%emt 0:00:05]} Qd8 {[%emt 0:00:44]} ({Black should play} 27... Bd3 $19 28. Rf2 (28. Rxf8+ $2 Rxf8 29. Qa2 Rf3 $19) 28... Rxf2 29. Kxf2 Rf8+ 30. Kg1 Qe7) 28. Rxf8 $17 {[%emt 0:09:36]} Rxf8 {[%emt 0:00:40]} 29. Rf1 {[%emt 0:00:05]} (29. Re1 $17 {was called for.}) 29... Rxf1+ $19 {[%emt 0:00:15]} 30. Kxf1 {[%emt 0:00:02]} Qxa5 {[%emt 0:01:55][%mdl 4096] Endgame KQB-KQB. Black is a pawn up.} 31. Qb2 {[%emt 0:00:29] Repels Qa1+} Qa4 {[%emt 0:00:45]} 32. Qe2 {[%emt 0:01:16] Prevents Qd1+.} Kb8 {[%emt 0:02:36]} 33. Be1 {[%emt 0:03:37]} a5 {[%emt 0:01:21]} 34. c4 $2 {[%emt 0:00:04]} (34. Qd2 {is the only way for White.}) 34... Qb3 {[%emt 0:00:23]} (34... Qxc4 35. Qxc4 dxc4 36. Bxa5 $15) 35. Kg1 $2 {[%emt 0:00:23]} (35. Kf2 a4 (35... Qxc4 36. Qxc4 dxc4 37. Bxa5 $17) 36. Qe3 Qb2+ (36... Qxc4 $2 37. h4 $19) 37. Qd2) 35... a4 {[%emt 0:00:28] ( -> ...a3)} ({Not} 35... Qxc4 36. Qxc4 dxc4 37. Bxa5 $17) 36. Qf2 {[%emt 0:01:20]} Qd1 {[%emt 0:01:51] And now ...a3 would win.} 37. Kf1 {[%emt 0:03:19]} a3 {[%emt 0:02:12]} 38. Qh4 {[%emt 0:01:47]} Ka7 {[%emt 0:00:27]} ({Worse is} 38... Qxd4 39. Qd8+ Ka7 40. Qa5+ Kb8 41. Qd8+ Ka7 42. Qb6+ Kb8 43. Qd8+ $11) 39. Qf2 {[%emt 0:01:51]} dxc4 {[%emt 0:00:41]} 40. Qd2 {[%emt 0:00:13]} Qf3+ {[%emt 0:01:31]} 41. Bf2 {[%emt 0:30:16]} Qd3+ {[%emt 0:30:54]} 0-1

[Event "XTX Markets London Masters 2024"]
[Site "London"]
[Date "2024.11.29"]
[Round "1.17"]
[White "Roberson, Peter T"]
[Black "Fernandez, Michael"]
[Result "1-0"]
[ECO "B13"]
[WhiteElo "2432"]
[BlackElo "2138"]
[Annotator "TA"]
[PlyCount "53"]
[EventDate "2024.11.28"]
[EventType "swiss"]
[EventCountry "ENG"]
[SourceTitle "playchess.com"]
[Source "ChessBase"]
[SourceQuality "1"]
[TimeControl "40/5400+30:1800+30"]

{[%evp 17,52,20,29,27,47,56,64,49,93,73,85,70,139,86,94,92,112,112,147,147,150,161,289,249,398,425,510,496,856,819,1798,1791,1773,1732,29998,29999,29999]} 1. e4 {[%emt 0:00:05]} c6 {[%emt 0:00:15]} 2. d4 {[%emt 0:00:06]} d5 {[%emt 0:00:04]} 3. exd5 {[%emt 0:00:05]} cxd5 {[%emt 0:00:04]} 4. Bd3 {[%emt 0:00:06]} Nc6 {[%emt 0:00:09][%cal Bb8c6,Bc6a5,Ba5c4][%mdl 32]} 5. c3 {[%emt 0:00:06]} Nf6 {[%emt 0:00:41]} 6. Bf4 {[%emt 0:00:17]} Bg4 {[%emt 0:00:27]} 7. Qb3 {[%emt 0:00:10]} Na5 {[%emt 0:00:36]} 8. Qa4+ {[%emt 0:01:17]} Bd7 {[%emt 0:00:12]} 9. Qc2 {[%emt 0:00:15]} Rc8 {[%emt 0:05:27]} 10. Nf3 {[%emt 0:03:13]} Nc4 {[%emt 0:00:48]} 11. O-O {[%emt 0:04:34]} e6 {[%emt 0:00:49]} 12. Nbd2 {[%emt 0:03:59] White is slightly better.} Qb6 {[%emt 0:16:34]} 13. Bxc4 {[%emt 0:06:06]} dxc4 {[%emt 0:00:05]} 14. Ne5 {[%emt 0:00:52]} Qb5 {[%emt 0:08:36] [#]} ({Better is} 14... Nd5 $14) 15. Ndf3 {[%emt 0:11:11]} ({White should play} 15. b3 $1) 15... Be7 {[%emt 0:21:02]} 16. b3 {[%emt 0:05:43]} cxb3 {[%emt 0:01:42]} 17. axb3 {[%emt 0:00:05]} a6 {[%emt 0:07:07]} 18. c4 {[%emt 0:04:07] Strongly threatening Ng5.} Qb6 {[%emt 0:34:52]} 19. Ng5 {[%emt 0:07:44] White is much more active.} Rf8 {[%emt 0:00:00]} (19... Qxd4 $142 20. Bg3 Bc6 (20... O-O $2 21. Rfd1 $18)) 20. Nxh7 {[%emt 0:10:00]} Rh8 {[%emt 0:00:00]} (20... Nxh7 $142 21. Qxh7 Qxd4) 21. Ng5 $18 {[%emt 0:03:55]} ({Not} 21. Nxf6+ gxf6 22. Nxd7 Qxd4 $16) 21... Rh5 {[%emt 0:00:00]} 22. Nexf7 {[%emt 0:07:04] Black must now prevent Qg6.} Qxd4 {[%emt 0:00:00]} (22... Kf8 $142 23. Ne5 Kg8) 23. Be5 {[%emt 0:11:51]} Qg4 {[%emt 0:00:00]} 24. Qg6 {[%emt 0:02:04] Intending Nd6+ and mate.} Kf8 {[%emt 0:00:00] [#]} 25. Nh6 $1 {[%emt 0:02:20][%mdl 512] Excellent horsemanship.} Be8 {[%emt 0:00:00] Wards off Qf7+} (25... Qxg2+ 26. Kxg2) 26. Nh7+ {[%emt 0:01:04]} Nxh7 {[%emt 0:00:00]} 27. Bxg7# {[%emt 0:00:08] Weighted Error Value: White=0.09 (flawless) /Black=0.84.  Mistake:       	White=1     	Black=4      Inaccurate:     	---       	Black=3      OK:         	White=5     	---        Best:        	White=3     	Black=1} 1-0